Cogmind - Beta 14 @@@ ROGUE MODE // 2024.09.08 @ 15:45:54 Player: rice Result: Destroyed by Z-Imprinter with Zionite Laser-M Performance ------------- Evolutions (1) 500 Regions Visited (6) 1200 Robots Destroyed (2) 10 Value Destroyed (53) 53 Prototype IDs (1) 20 Alien Tech Used (0) 0 Bonus (865) 865 TOTAL SCORE: 2648 Bonus ------- Pacifist 200 Follower Combat Kills 65 Met Imprinter 300 Was Imprinted 300 Cogmind --------- Core Integrity 0/400 Matter 300/300 Energy 142/250 System Corruption 0% Temperature Cool (58) Movement Core (450) Ox8 Location -7/Deep Caves Parts ------- > --- POWER (1) -------- Ion Engine > --- PROPULSION (2) --- (None) > --- UTILITY (4) ------ Large Storage Unit Signal Interpreter Improved Terrain Scanner > --- WEAPON (2) ------- (None) > --- INVENTORY (15) --- Light Ion Engine Improved Treads Improved Treads Aluminum Leg Armored Wheel Small Storage Unit Tactical Coordination Suite Force Booster Heavy Assault Rifle Heavy Assault Rifle Scythe Peak State ------------ > --- POWER ------------ Ion Engine > --- PROPULSION ------- Improved Treads Improved Treads > --- UTILITY ---------- Large Storage Unit Signal Interpreter Improved Terrain Scanner Splice Drone Bay > --- WEAPON ----------- Heavy Assault Rifle Heavy Battle Rifle > --- INVENTORY -------- Ion Engine Light Ion Engine Improved Treads Improved Treads Aluminum Leg Armored Wheel Small Storage Unit Force Booster Heavy Assault Rifle Heavy Assault Rifle Scythe [Rating: 25] Favorites ----------- Power Ion Engine Engine Ion Engine Propulsion Improved Treads Treads Improved Treads Utility Signal Interpreter Device Splice Drone Bay Storage Large Storage Unit Processor Signal Interpreter Weapon Heavy Assault Rifle Ballistic Gun Heavy Assault Rifle Build | -11 -10 -10 -9 -9 -7 -7 ------- Run | Yrd Mat Min Mat Min Zio Dee Slots Evolved 2 | . . . 2 . . . Power . | . . . . . . . Propulsion . | . . . . . . . Utility 2 | . . . 2 . . . Weapon . | . . . . . . . Parts Attached 21 | 8 5 1 4 1 1 1 Power 4 | 3 . . . . . 1 Engine 4 | 3 . . . . . 1 Core . | . . . . . . . Reactor . | . . . . . . . Propulsion 6 | 2 2 . 2 . . . Treads 6 | 2 2 . 2 . . . Leg . | . . . . . . . Wheel . | . . . . . . . Hover . | . . . . . . . Flight . | . . . . . . . Utility 6 | 1 1 1 2 1 . . Device 2 | . . . 1 1 . . Storage 3 | 1 . 1 1 . . . Processor 1 | . 1 . . . . . Hackware . | . . . . . . . Protection . | . . . . . . . Artifact . | . . . . . . . Weapon 5 | 2 2 . . . 1 . Energy Gun . | . . . . . . . Energy Cannon . | . . . . . . . Ballistic Gun 5 | 2 2 . . . 1 . Ballistic Cannon . | . . . . . . . Launcher . | . . . . . . . Special Weapon . | . . . . . . . Impact Weapon . | . . . . . . . Slashing Weapon . | . . . . . . . Piercing Weapon . | . . . . . . . Special Melee Weapon . | . . . . . . . Unidentified Prototypes 1 | . . . 1 . . . Parts Lost 6 | . . . . . . 6 Power 1 | . . . . . . 1 Propulsion 2 | . . . . . . 2 Utility 1 | . . . . . . 1 Weapon 2 | . . . . . . 2 Highest Loss Streak 6 | . . . . . . 6 To Critical Strikes . | . . . . . . . Average Slot Usage (%) 97 | . 96 100 87 98 100 99 Engine 11 | . 14 14 11 11 11 11 Treads 23 | . 28 28 22 22 22 22 Device 16 | . . . 11 20 22 21 Storage 11 | . 14 14 10 11 11 11 Processor 11 | . 10 14 11 11 11 11 Ballistic Gun 23 | . 28 28 22 22 22 22 Peak Build Rating 25 | 6 12 12 19 22 25 25 Average Rating 20 | 4 9 11 18 21 23 24 On Entrance 13 | . 6 11 12 19 22 25 Naked Turns . | . . . . . . . Heaviest Build 41 | 13 16 31 39 40 41 41 Greatest Support 46 | 40 46 46 46 46 46 46 Greatest Overweight (x) 3 | 3 . . . . . 1 Average Overweight (x) . | . . . . . . . Largest Inventory Capacity 15 | 8 8 15 15 15 15 15 Average Capacity 13 | 7 8 11 14 15 15 15 Most Carried 12 | 3 8 8 7 7 12 12 Average Carried 8 | 1 4 6 6 7 10 11 Final Capacity 15 | 8 8 15 15 15 15 15 Final Carried 12 | 3 6 8 7 7 12 11 Class Distribution -------------------- 100% | Mutant Dominant Class ---------------- Mutant | -10/Materials Mutant | -10/Mines Mutant | -9/Materials Mutant | -9/Mines Mutant | -7/Zion Mutant | -7/Deep Caves Resources | -11 -10 -10 -9 -9 -7 -7 ----------- Run | Yrd Mat Min Mat Min Zio Dee Matter Collected 415 | 189 . 50 161 15 . . Remotely . | . . . . . . . Salvage Created 126 | . . . 126 . . . Parts 5 | . . . 5 . . . Haulers Intercepted . | . . . . . . . Recyclers Shooed . | . . . . . . . Parts Field Recycled . | . . . . . . . Retrieved Matter . | . . . . . . . Parts Self-Destructed . | . . . . . . . Prevented . | . . . . . . . Kills | -11 -10 -10 -9 -9 -7 -7 ------- Run | Yrd Mat Min Mat Min Zio Dee Combat Hostiles Destroyed 1 | . . . 1 . . . AOE 1 | . . . 1 . . . Classes Destroyed 2 | . . . 2 . . . Recycler 1 | . . . 1 . . . Grunt 1 | . . . 1 . . . Best Kill Streak 1 | . . . 1 . . . Combat Bots Only 1 | . . . 1 . . . Max Kills in Single Turn 1 | . . . 1 . . . Gunslinging . | . . . . . . . Exploded 1 | . . . 1 . . . Melee . | . . . . . . . Uniques/NPCs Destroyed . | . . . . . . . Combat | -11 -10 -10 -9 -9 -7 -7 -------- Run | Yrd Mat Min Mat Min Zio Dee Hostile Shots Fired 75 | . . . 14 . . 61 Missed 24 | . . . 5 . . 19 Damage Taken 1416 | . . . 170 . . 1246 Core 401 | . . . 14 . . 387 Absorbed by Shields . | . . . . . . . Regen/Repaired (Parts) 130 | . . . 130 . . . Core Remaining (%) 100 | 100 . 100 . . . . Volleys Fired 6 | . . . 5 . . 1 Largest 2 | . . . 2 . . 1 Hottest 46 | . . . 46 . . 33 Shots Fired 11 | . . . 10 . . 1 Gun 11 | . . . 10 . . 1 Cannon . | . . . . . . . Launcher . | . . . . . . . Special . | . . . . . . . Kinetic 11 | . . . 10 . . 1 Thermal . | . . . . . . . Explosive . | . . . . . . . Electromagnetic . | . . . . . . . Robot Hit Streak 5 | . . . 5 . . . Robot Miss Streak 2 | . . . 2 . . 1 Penetration Max . | . . . . . . . Secondary Targets . | . . . . . . . Shots Hit Robots 6 | . . . 6 . . . Core Hits 4 | . . . 3 1 . . Critical Kills . | . . . . . . . Critical Parts Destroyed . | . . . . . . . Critical Strikes . | . . . . . . . Melee Attacks . | . . . . . . . Impact . | . . . . . . . Slashing . | . . . . . . . Piercing . | . . . . . . . Sneak Attacks . | . . . . . . . Combat Hostiles . | . . . . . . . Follow-up Attacks . | . . . . . . . Damage Inflicted 86 | . . . 85 1 . . Guns 85 | . . . 85 . . . Cannons . | . . . . . . . Explosions . | . . . . . . . Melee . | . . . . . . . Ramming 1 | . . . . 1 . . Kinetic 85 | . . . 85 . . . Thermal . | . . . . . . . Explosive . | . . . . . . . Electromagnetic . | . . . . . . . Impact . | . . . . . . . Slashing . | . . . . . . . Piercing . | . . . . . . . Highest Corruption . | . . . . . . . Average Corruption . | . . . . . . . Corruption Purged . | . . . . . . . Corruption Blocked . | . . . . . . . Overload Shots . | . . . . . . . Overflow Damage . | . . . . . . . Projectiles . | . . . . . . . Explosions . | . . . . . . . Melee . | . . . . . . . Knockbacks . | . . . . . . . Impact . | . . . . . . . Kinetic . | . . . . . . . Secondary . | . . . . . . . Self-Inflicted Damage . | . . . . . . . Shots . | . . . . . . . Rammed 1 | . . . . 1 . . Targets Rammed 1 | . . . . 1 . . Kicked . | . . . . . . . Crushed . | . . . . . . . Highest Temperature 23 | . . . 23 . . 22 Average Temperature 15 | . . . 19 . . 12 Received Heat Transfer 432 | . . . 54 . . 378 Siege Activations . | . . . . . . . Robots Corrupted . | . . . . . . . Combat Hostiles . | . . . . . . . Parts Fried . | . . . . . . . Impact Corruptions . | . . . . . . . Robots Melted . | . . . . . . . Combat Hostiles . | . . . . . . . Parts Melted . | . . . . . . . Heat Transferred . | . . . . . . . Parts Sabotaged . | . . . . . . . Parts Stolen . | . . . . . . . Parts Stripped . | . . . . . . . Power Chain Reactions . | . . . . . . . Alert | -11 -10 -10 -9 -9 -7 -7 ------- Run | Yrd Mat Min Mat Min Zio Dee Peak Influence 76 | . 21 7 76 28 . . Initial 7 | . . 7 2 5 . . Average 18 | . 16 7 29 22 . . Maximum Alert Level . | . . . . . . . Low Security (%) 100 | 100 100 100 100 100 . . Level 1 . | . . . . . . . Level 2 . | . . . . . . . Level 3 . | . . . . . . . Level 4 . | . . . . . . . Level 5 . | . . . . . . . High Security . | . . . . . . . Max Security . | . . . . . . . Squads Dispatched 1 | . . . 1 . . . Investigation 1 | . . . 1 . . . Extermination . | . . . . . . . Reinforcement . | . . . . . . . Assault . | . . . . . . . Garrison . | . . . . . . . Intercept . | . . . . . . . Searches Triggered . | . . . . . . . Construction Impeded . | . . . . . . . Haulers Reinforced . | . . . . . . . Active Scanning Responses . | . . . . . . . Cargo Convoy Interrupts . | . . . . . . . Stealth | -11 -10 -10 -9 -9 -7 -7 --------- Run | Yrd Mat Min Mat Min Zio Dee Distress Signals 1 | . . . 1 . . . Communications Jammed . | . . . . . . . Distress Signals . | . . . . . . . Times Spotted 20 | . 1 . 11 2 . 6 Peak Tracking Total 6 | . 1 . 4 1 . 6 Tactical Retreats 2 | . . . 2 . . . Traps | -11 -10 -10 -9 -9 -7 -7 ------- Run | Yrd Mat Min Mat Min Zio Dee Traps Triggered . | . . . . . . . Indirectly . | . . . . . . . Trap Hack Attempts . | . . . . . . . Triggered . | . . . . . . . Disarmed . | . . . . . . . Reprogrammed . | . . . . . . . Reused . | . . . . . . . Traps Extracted . | . . . . . . . Installed . | . . . . . . . Triggered . | . . . . . . . Machines | -11 -10 -10 -9 -9 -7 -7 ---------- Run | Yrd Mat Min Mat Min Zio Dee Machines Disabled . | . . . . . . . Max in Single Turn . | . . . . . . . Machines Repaired . | . . . . . . . Machines Dismantled . | . . . . . . . Machines Sabotaged . | . . . . . . . Overloaded Fab Kills . | . . . . . . . Hacking | -11 -10 -10 -9 -9 -7 -7 --------- Run | Yrd Mat Min Mat Min Zio Dee Machines Accessed 7 | . 3 1 3 . . . Terminals 3 | . 1 . 2 . . . Fabricators . | . . . . . . . Repair Stations 1 | . . . 1 . . . Recycling Units 2 | . 2 . . . . . Scanalyzers . | . . . . . . . Garrison Access . | . . . . . . . Total Hacks 21 | . 8 1 12 . . . Successful 12 | . 4 1 7 . . . Failed 9 | . 4 . 5 . . . Catastrophic 1 | . . . 1 . . . Database Lockouts . | . . . . . . . Manual 19 | . 4 . 6 . 9 . Terminals 11 | . 4 . 7 . . . Fabricators . | . . . . . . . Repair Stations 5 | . . . 5 . . . Recycling Units 4 | . 4 . . . . . Scanalyzers . | . . . . . . . Garrison Access . | . . . . . . . Terminal Hacks 4 | . 1 1 2 . . . Open Door 1 | . . 1 . . . . Unreport Threat 2 | . . . 2 . . . Hauler Manifests 1 | . 1 . . . . . Fabricator Hacks . | . . . . . . . Repair Station Hacks 4 | . . . 4 . . . Scan Component 2 | . . . 2 . . . Repair 2 | . . . 2 . . . Recycling Unit Hacks 2 | . 2 . . . . . Report Inventory 2 | . 2 . . . . . Scanalyzer . | . . . . . . . Garrison Access Hacks . | . . . . . . . Unauthorized Hacks 2 | . 1 . 1 . . . Terminals 2 | . 1 . 1 . . . Assimilate 2 | . 1 . 1 . . . Fabricators . | . . . . . . . Repair Stations . | . . . . . . . Recycling Units . | . . . . . . . Scanalyzers . | . . . . . . . Garrison Access . | . . . . . . . Data Cores Recovered . | . . . . . . . Used . | . . . . . . . Hacking Detections 5 | . 2 . 3 . . . Full Trace Events 1 | . . . 1 . . . Feedback Events . | . . . . . . . Feedback Blocked . | . . . . . . . Robot Schematics Acquired . | . . . . . . . Robots Built . | . . . . . . . Authchips . | . . . . . . . Time . | . . . . . . . Total Robot Build Rating . | . . . . . . . Part Schematics Acquired . | . . . . . . . Parts Built . | . . . . . . . Authchips . | . . . . . . . Time . | . . . . . . . Total Part Build Rating . | . . . . . . . Parts Repaired 2 | . . . 2 . . . Time 58 | . . . 58 . . . Parts Recycled . | . . . . . . . Recycled Matter . | . . . . . . . Retrieved Matter . | . . . . . . . Retrieved Components . | . . . . . . . Parts Scanalyzed . | . . . . . . . Part Schematics Acquired . | . . . . . . . Parts Damaged . | . . . . . . . Bothacking | -11 -10 -10 -9 -9 -7 -7 ------------ Run | Yrd Mat Min Mat Min Zio Dee Used RIF Installer . | . . . . . . . Robots Hacked . | . . . . . . . Non-combat . | . . . . . . . Combat . | . . . . . . . Robot Hacks Applied . | . . . . . . . Relay Couplers Released . | . . . . . . . Fabnet Peak Effective % . | . . . . . . . Robots Rewired . | . . . . . . . Allies Hacked . | . . . . . . . Hacks Repelled . | . . . . . . . Allies | -11 -10 -10 -9 -9 -7 -7 -------- Run | Yrd Mat Min Mat Min Zio Dee Total Allies 7 | . . . 2 1 4 . Largest Group 4 | . . . 1 . 4 . Highest-Rated Group 149 | . . . 16 . 149 . Highest-Rated Ally 38 | . . . 16 . 38 . Total Orders . | . . . . . . . Ally Attacks 70 | . . . 36 9 . 25 Total Damage 415 | . . . 232 33 . 150 Kills 7 | . . . 2 2 . 3 Allies Corrupted . | . . . . . . . Allies Melted . | . . . . . . . Intel | -11 -10 -10 -9 -9 -7 -7 ------- Run | Yrd Mat Min Mat Min Zio Dee Robot Analysis Total . | . . . . . . . Derelict Logs Recovered 2 | . . . . 1 1 . Drone Launches 66 | . . . 31 15 . 20 Drone Recoveries 64 | . . . 31 9 . 24 Exploration | -11 -10 -10 -9 -9 -7 -7 ------------- Run | Yrd Mat Min Mat Min Zio Dee Turns Passed 3227 | 98 244 289 434 312 1592 258 Spaces Moved 1910 | 60 144 180 195 185 992 154 Core 18 | 18 . . . . . . Treads 1892 | 42 144 180 195 185 992 154 Legs . | . . . . . . . Wheels . | . . . . . . . Hover . | . . . . . . . Flight . | . . . . . . . Fastest Speed 50 | 50 160 160 160 160 160 160 Average Speed 159 | 141 160 160 160 160 160 161 Slowest Speed 240 | 200 160 160 160 160 160 240 Overloaded Moves . | . . . . . . . Propulsion Burnouts . | . . . . . . . Robots Hopped . | . . . . . . . Cave-ins Triggered . | . . . . . . . Exploration Rate (%) 42 | 4 31 43 23 66 90 42 Regions Visited 6 Branch Regions 4 Pre-discovered Areas 3 | . . . . 1 2 . Known Exits Taken 5 | . 1 1 1 1 1 . Unknown Exits Taken 1 | 1 . . . . . . Scrap Searched 4 | . . 1 . . 3 . Spaces Dug . | . . . . . . . Terrain Destroyed . | . . . . . . . Melee . | . . . . . . . Projectile . | . . . . . . . AOE . | . . . . . . . Terrain Rammed . | . . . . . . . Walls Destroyed . | . . . . . . . Machines Disabled . | . . . . . . . Actions | -11 -10 -10 -9 -9 -7 -7 --------- Run | Yrd Mat Min Mat Min Zio Dee Total 2076 | 69 161 181 306 200 996 163 Wait 120 | . . . 99 14 . 7 Move 1904 | 59 143 179 194 184 991 154 Hop . | . . . . . . . Pick Up 15 | 2 6 1 2 . 4 . Fast Attach 9 | 6 1 . 1 1 . . Attach 2 | . . . 1 . . 1 Detach . | . . . . . . . Swap 10 | 2 4 1 2 . 1 . Drop 7 | . 7 . . . . . Fire 6 | . . . 5 . . 1 Melee . | . . . . . . . Ram . | . . . . . . . Kick . | . . . . . . . Crush 1 | . . . . 1 . . Escape Stasis . | . . . . . . . Rewire 2 | . . . 2 . . . Trap . | . . . . . . . Miscellaneous . | . . . . . . . Route ------- -11/Scrapyard -10/Materials -10/Mines -9/Materials -9/Mines -7/Zion -7/Deep Caves History --------- Turn | Location | Event 19 | -11/Scrapyard | Discovered new exit (range 15) 99 | -11/Scrapyard | Entered Materials 305 | -10/Materials | Discovered new exit (range 6) 313 | -10/Materials | Build established: Mutant 333 | -10/Materials | Identified exit to Mines 343 | -10/Materials | Entered Mines 535 | -10/Mines | Found the Drone Emporium 542 | -10/Mines | Found Prototype Device 592 | -10/Mines | Discovered new exit (range 3) 594 | -10/Mines | Identified exit to Materials 632 | -10/Mines | Entered Materials 632 | -9/Materials | Evolved 2 slots: Utility x2 632 | -9/Materials | Identified Splice Drone Bay 738 | -9/Materials | Repaired Lrg. Storage Unit 822 | -9/Materials | Discovered new exit (range 21) 998 | -9/Materials | Repaired Imp. Treads 1065 | -9/Materials | Identified exit to Mines 1066 | -9/Materials | Entered Mines 1368 | -9/Mines | A Derelict revealed a hidden shortcut to a safe place 1375 | -9/Mines | Identified exit to Zion 1378 | -9/Mines | Entered Zion 1378 | -7/Zion | Accompanied by 6 allies 1493 | -7/Zion | Acquired unknown access codes intercepted by a Zionite 1721 | -7/Zion | Learned location of Armory (-3) 2028 | -7/Zion | Learned location of Data Miner (-6) 2304 | -7/Zion | Met Imprinter 2333 | -7/Zion | Imprinted 2336 | -7/Zion | Declared Zion's savior 2606 | -7/Zion | Learned location of 1 exit from Proximity Caves 2637 | -7/Zion | Learned Factory emergency access door positions 2934 | -7/Zion | Opened final containment barrier to the Deep Caves 2960 | -7/Zion | Discovered new exit (range 6) 2965 | -7/Zion | Saw the warning signs outside the Deep Caves entrance 2968 | -7/Zion | Identified exit to Deep Caves 2970 | -7/Zion | Entered Deep Caves 2970 | -7/Deep Caves | Accompanied by 9 allies 3181 | -7/Deep Caves | Attacked by Z-Imprinter 3187 | -7/Deep Caves | Z-Facility disabled 3220 | -7/Deep Caves | Core integrity fell below 50% 3228 | -7/Deep Caves | Core integrity fell below 20% 3228 | -7/Deep Caves | Destroyed by Z-Imprinter with Zionite Laser-M Last Messages --------------- 03200_ Splice Drone injecting Z-Imprinter... 03201_ Splice Drone retrieved by Splice Drone Bay. 03202_ Splice Drone injecting Z-Imprinter... 03204_ Splice Drone retrieved by Splice Drone Bay. 03215_ Splice Drone released from Splice Drone Bay. 03215_ Splice Drone injecting Z-Imprinter... 03216_ Splice Drone released from Splice Drone Bay. 03216_ Splice Drone Bay destroyed. 03216_ >> Lost connection to Splice Drone. 03217_ Ion Engine destroyed. 03220_ Splice Drone destroyed. 03221_ Imp. Treads destroyed. 03222_ Hvy. Assault Rifle destroyed. 03225_ Splice Drone destroyed. 03226_ Imp. Treads destroyed. 03228_ Hvy. Battle Rifle destroyed. Map ----- +----------------------------------------------------+ | ?????????????????????????????????????????????????? | | ???????????????????????????????????????????????? | | ?????????????????????????????????????? | | ?????????????????????????????????????? | | ?????????????????????????????????????? | | ?????????????????????????????????????? | | ?????????????????????????????????????"" | | ?????????????????????????????????????"" | | ????????????????????????????????????""" | | ????????????????????????????????????""" | | ??????????????????????? ??????????" | | ????????????????????? ???????""""""" | | ?????????????????? ??????"""""""" | | ???????????????? "????""""""""" | | ?????????????? "????""""""""" | | ?????????????? ""???"""" " " | | ????????????? "???""""" %! | | ????????????? "???"""" = | | ???????????? ""??""""" | | ???????????? """??"""" | | ???????????? """"?"""""" | | ??????????? """""""""""""% | | ??????????? """""" ! | | ?????????? """""" """ | | ?????????? """""" """"" | | ?????????? @ """" """"""" | | ?????????? """" """"""" | | ?????????? """" """"""" | | ?????????? """" """"" | | ?????????? " "" """ | | ?????????? % "" = | | ?????????? z """"""""" % | | ?????????? I """ """" ! | | ?????????? z | | ?????????? | | ??????????? | | ??????????? | | ??????????? | | ??????????? z | | ???????????? #"### | | ???????????? ### ### #""###?### | | ????????????????# ??## ## ##?????# | | ????????????????###????### #########?????? | | ?????????????????????????###########???#??????#??? | | ????????????????????????????????????????????#????? | | | | | | | | | | | +----------------------------------------------------+ Best States ------------- Heat Dissipation 28 Energy Generation 10 Energy Capacity 250 Matter Stores 300 Matter Capacity 300 Sight Range 16 Terrain Scan Range 16 Terrain Scan Density 10 Evasion (%) 40 Recoil Reduction 2 Item Schematics ----------------- None Robot Schematics ------------------ None Fabricated ------------ Nothing Alien Tech Used ----------------- None Achievements -------------- Adventurer Error 47 Factory Defaults Release The Drones! Signs Are For Wimps Challenges ------------ None Game ------ Seed TerrainChipRedirector Manual? 0 Play Time 00:25:25 Cumulative 19.7 hours Start 2024.09.08 @ 15:22:17 End 2024.09.08 @ 15:45:54 Sessions 1 Manual Loads 0 Difficulty Rogue Special Mode None Game No. 42 Rogue 42 Adventurer 0 Explorer 0 Win Type - Total 0 Types 0/0/0/0/0/0/0/0/0 Lore% 7 Gallery% 22 Achievement% 21 Wizard Run 0 Options --------- Layout 1 ASCII 0 Keyboard 1 Movement Numpad Keybinds 0 Fullscreen 1 Font 24/Smallcaps Map View 50x35 Zoom Use 0% Tactical HUD 1 Map Filters NONE Filters NONE Steam 1 RUN: 384d98e0-f0f0-4145-be47-d246849423d3